[Event "Lueneburg Open-B 2019"]
[Site "Lueneburg"]
[Date "2019.08.05"]
[Round "3.13"]
[White "Raedisch, Peter"]
[Black "Schencke, Guenther"]
[Result "0-1"]
[ECO "C02"]
[WhiteElo "1595"]
[BlackElo "1668"]
[Annotator "NA"]
[PlyCount "126"]
[EventDate "2019.08.03"]
[EventType "swiss"]
[EventCountry "GER"]
[SourceTitle "playchess.com"]
[Source "ChessBase"]
[SourceQuality "1"]
[TimeControl "40/5400+30:1800+30"]

1. e4 {[%emt 0:00:00]} e6 {[%emt 0:00:00]} 2. d4 {[%emt 0:00:26]} d5 {[%emt 0:00:00]} 3. e5 {[%emt 0:00:08]} c5 {[%emt 1:31:30]} 4. c3 {[%emt 1:31:26]} Qb6 {[%emt 0:00:00]} 5. Nf3 {[%emt 0:00:00]} Bd7 {[%emt 0:00:00]} 6. Be2 {[%emt 0:00:00]} cxd4 {[%emt 0:00:00]} 7. cxd4 {[%emt 0:00:00]} Bb5 {[%emt 0:00:00]} 8. O-O {[%emt 0:00:00]} Bxe2 {[%emt 0:00:00]} 9. Qxe2 {[%emt 0:00:00]} Nc6 {[%emt 0:00:00]} 10. Be3 {[%emt 0:00:00]} Nge7 {[%emt 0:00:00]} 11. Nc3 {[%emt 0:00:00]} Nf5 {[%emt 0:00:00]} 12. Rad1 {[%emt 0:00:00]} Qd8 {[%emt 0:00:00]} 13. Qb5 {[%emt 0:00:00]} Qd7 {[%emt 0:00:00]} 14. Na4 {[%emt 0:00:00]} Nxe5 {[%emt 0:00:00]} 15. Qxd7+ {[%emt 0:00:00]} Nxd7 {[%emt 0:00:00]} 16. Rc1 {[%emt 0:00:00]} Bd6 {[%emt 0:00:00]} 17. a3 {[%emt 0:00:00]} O-O {[%emt 0:00:00]} 18. Bd2 {[%emt 0:00:00]} Rfc8 {[%emt 0:00:00]} 19. Nc3 {[%emt 0:00:00]} Rc6 {[%emt 0:00:00]} 20. g4 {[%emt 0:00:00]} Ne7 {[%emt 0:00:00]} 21. Nb5 {[%emt 0:00:00]} Bb8 {[%emt 0:00:00]} 22. Bb4 {[%emt 0:00:00]} Rxc1 {[%emt 0:00:00]} 23. Rxc1 {[%emt 0:00:00]} Nc6 {[%emt 0:00:00]} 24. Bd2 {[%emt 0:00:00]} a6 {[%emt 0:00:00]} 25. Nc3 {[%emt 0:00:00]} Bd6 {[%emt 0:00:00]} 26. b4 {[%emt 0:00:00]} b5 {[%emt 0:00:00]} 27. Be3 {[%emt 0:00:00]} Rc8 {[%emt 0:00:00]} 28. Ne2 {[%emt 0:12:00]} Nb6 {[%emt 0:00:00]} 29. Bf4 {[%emt 0:00:00]} Bxf4 {[%emt 0:00:00]} 30. Nxf4 {[%emt 0:00:00]} Nc4 {[%emt 0:00:00]} 31. Rc3 {[%emt 0:00:00]} Kf8 {[%emt 0:00:00]} 32. Nd3 {[%emt 0:00:00]} a5 {[%emt 0:00:00]} 33. h4 {[%emt 0:00:00]} axb4 {[%emt 0:00:00]} 34. Nxb4 {[%emt 0:00:00]} Nxb4 {[%emt 0:00:00]} 35. axb4 {[%emt 0:00:00]} Ra8 {[%emt 0:00:00]} 36. Ne5 {[%emt 0:00:00]} Ke7 {[%emt 0:00:00]} 37. g5 {[%emt 0:00:00]} Ra3 {[%emt 0:00:00]} 38. Rc2 {[%emt 0:00:00]} f6 {[%emt 0:00:00]} 39. gxf6+ {[%emt 0:05:30]} gxf6 {[%emt 0:18:00]} 40. Ng4 {[%emt 0:00:00]} Ra4 {[%emt 0:00:00]} 41. Ne3 {[%emt 0:00:00]} Rxb4 {[%emt 0:03:38]} 42. Re2 {[%emt 0:00:00]} Nxe3 {[%emt 0:05:03]} 43. fxe3 {[%emt 0:00:00]} Kd7 {[%emt 0:01:50]} 44. Rg2 {[%emt 0:00:00]} Rb1+ {[%emt 0:02:10]} 45. Kh2 {[%emt 0:00:00]} b4 {[%emt 0:00:09]} 46. Rg7+ {[%emt 0:00:00]} Ke8 {[%emt 0:00:29]} 47. Rxh7 {[%emt 0:00:00]} b3 {[%emt 0:00:39]} 48. h5 {[%emt 0:00:00]} b2 {[%emt 0:00:24]} 49. Rb7 {[%emt 0:00:00]} Kf8 {[%emt 0:01:55]} 50. h6 {[%emt 0:00:00]} Kg8 {[%emt 0:00:41]} 51. Rg7+ {[%emt 0:00:00]} Kh8 {[%emt 0:00:05]} 52. Rb7 {[%emt 0:00:00]} e5 {[%emt 0:01:22]} 53. dxe5 {[%emt 0:00:00]} fxe5 {[%emt 0:00:08]} 54. Kg2 {[%emt 0:00:00]} d4 {[%emt 0:01:09]} 55. exd4 {[%emt 0:00:00]} exd4 {[%emt 0:00:30]} 56. Rb3 {[%emt 0:00:00]} Kh7 {[%emt 0:00:34]} 57. Rb6 {[%emt 0:00:00]} d3 {[%emt 0:00:20]} 58. Rd6 {[%emt 0:00:00]} Rd1 {[%emt 0:00:45]} 59. Rd7+ {[%emt 0:00:00]} Kxh6 {[%emt 0:00:16]} 60. Rd6+ {[%emt 0:00:00]} Kg5 {[%emt 0:00:26]} 61. Rd5+ {[%emt 0:00:00]} Kf4 {[%emt 0:00:55]} 62. Kf2 {[%emt 0:00:00]} b1=Q {[%emt 0:00:52]} 63. Rd4+ {[%emt 0:00:00]} Ke5 {[%emt 0:00:12]} 0-1

[Event "Lueneburg Open-B 2019"]
[Site "Lueneburg"]
[Date "2019.08.05"]
[Round "3.15"]
[White "Schulze, Tim"]
[Black "Levink, Clemens"]
[Result "1/2-1/2"]
[ECO "A43"]
[WhiteElo "1481"]
[BlackElo "1719"]
[Annotator "NA"]
[PlyCount "31"]
[EventDate "2019.08.03"]
[EventType "swiss"]
[EventCountry "GER"]
[SourceTitle "playchess.com"]
[Source "ChessBase"]
[SourceQuality "1"]
[TimeControl "40/5400+30:1800+30"]

1. d4 {[%emt 0:00:00]} Nf6 {[%emt 0:00:00]} 2. Nf3 {[%emt 0:00:00]} c5 {[%emt 0:00:00]} 3. d5 {[%emt 0:00:00]} d6 {[%emt 0:00:00]} 4. Nc3 {[%emt 0:00:00]} g6 {[%emt 0:00:07]} 5. e4 {[%emt 0:00:00]} Bg7 {[%emt 0:00:09]} 6. Bd3 {[%emt 0:05:42]} O-O {[%emt 0:00:56]} 7. h3 {[%emt 0:00:17]} b6 {[%emt 0:02:10]} 8. O-O {[%emt 0:00:26]} Ba6 {[%emt 0:00:49]} 9. Re1 {[%emt 0:01:30]} Bxd3 {[%emt 0:03:58]} 10. Qxd3 {[%emt 0:00:21]} Nbd7 {[%emt 0:00:50]} 11. Bf4 {[%emt 0:01:48]} Rc8 {[%emt 0:02:29]} 12. Nd2 {[%emt 0:00:57]} Qc7 {[%emt 0:06:05]} 13. Nc4 {[%emt 0:02:52]} Nh5 {[%emt 0:11:29]} 14. Bh2 {[%emt 0:00:39]} Ne5 {[%emt 0:09:52]} 15. Nxe5 {[%emt 0:01:37]} dxe5 {[%emt 0:02:45]} 16. Qc4 {[%emt 0:13:52]} 1/2-1/2

[Event "Lueneburg Open-B 2019"]
[Site "Lueneburg"]
[Date "2019.08.05"]
[Round "3.16"]
[White "Cordsen, Heinrich"]
[Black "Rennkamp, David"]
[Result "1-0"]
[ECO "C54"]
[WhiteElo "1685"]
[BlackElo "1355"]
[Annotator "NA"]
[PlyCount "81"]
[EventDate "2019.08.03"]
[EventType "swiss"]
[EventCountry "GER"]
[SourceTitle "playchess.com"]
[Source "ChessBase"]
[SourceQuality "1"]
[TimeControl "40/5400+30:1800+30"]

1. e4 {[%emt 0:00:00]} e5 {[%emt 0:00:00]} 2. Nf3 {[%emt 0:00:00]} Nc6 {[%emt 0:00:00]} 3. Bc4 {[%emt 0:00:00]} Bc5 {[%emt 0:00:00]} 4. c3 {[%emt 0:01:07]} d6 {[%emt 0:00:47]} 5. d3 {[%emt 0:02:34]} Nf6 {[%emt 0:02:15]} 6. O-O {[%emt 0:04:44]} O-O {[%emt 0:01:36]} 7. Be3 {[%emt 0:03:39]} Bb6 {[%emt 0:00:17]} 8. Bg5 {[%emt 0:11:41]} Be6 {[%emt 0:01:54]} 9. Nbd2 {[%emt 0:04:55]} h6 {[%emt 0:00:51]} 10. Bh4 {[%emt 0:06:03]} Na5 {[%emt 0:07:50]} 11. Bxe6 {[%emt 1:00:47]} fxe6 {[%emt 0:01:57]} 12. b4 {[%emt 0:00:00]} Nc6 {[%emt 0:00:39]} 13. a4 {[%emt 0:00:00]} a6 {[%emt 0:00:30]} 14. Nc4 {[%emt 0:00:00]} Ba7 {[%emt 0:03:41]} 15. Qb3 {[%emt 0:00:00]} Qd7 {[%emt 0:05:20]} 16. Bg3 {[%emt 0:00:00]} Nh5 {[%emt 0:03:35]} 17. b5 {[%emt 0:00:00]} axb5 {[%emt 0:02:58]} 18. axb5 {[%emt 0:00:00]} Ne7 {[%emt 0:02:38]} 19. b6 {[%emt 0:00:00]} Bxb6 {[%emt 0:03:54]} 20. Nxb6 {[%emt 0:00:00]} cxb6 {[%emt 0:02:50]} 21. Qxb6 {[%emt 0:00:00]} Qc6 {[%emt 0:00:58]} 22. Qb3 {[%emt 0:00:00]} Qd7 {[%emt 0:02:01]} 23. Rfb1 {[%emt 0:00:00]} Kh8 {[%emt 0:04:05]} 24. Bxe5 {[%emt 0:00:00]} dxe5 {[%emt 0:03:39]} 25. Nxe5 {[%emt 0:00:00]} Qc8 {[%emt 0:13:54]} 26. Rxa8 {[%emt 0:00:00]} Qxa8 {[%emt 0:02:33]} 27. Qxe6 {[%emt 0:00:00]} Qa7 {[%emt 0:04:48]} 28. d4 {[%emt 0:00:00]} Qa3 {[%emt 0:04:00]} 29. Qxe7 {[%emt 0:00:00]} Qxe7 {[%emt 0:01:46]} 30. Ng6+ {[%emt 0:00:00]} Kh7 {[%emt 0:00:13]} 31. Nxe7 {[%emt 0:10:00]} Nf4 {[%emt 0:24:01]} 32. Kf1 {[%emt 0:00:00]} Rf7 {[%emt 0:00:00]} 33. Nf5 {[%emt 0:00:00]} Rc7 {[%emt 0:00:00]} 34. g3 {[%emt 0:00:00]} Ne6 {[%emt 0:00:00]} 35. Rb3 {[%emt 0:00:00]} Ng5 {[%emt 0:00:00]} 36. Nd6 {[%emt 0:00:00]} Nf3 {[%emt 0:00:00]} 37. Ke2 {[%emt 0:00:00]} Nxh2 {[%emt 0:00:00]} 38. f3 {[%emt 0:00:00]} Rd7 {[%emt 0:00:00]} 39. e5 {[%emt 0:00:00]} Rd8 {[%emt 0:00:00]} 40. Rxb7 {[%emt 0:00:00]} Rf8 {[%emt 0:00:00]} 41. Rf7 {[%emt 0:20:42]} 1-0

[Event "Lueneburg Open-B 2019"]
[Site "Lueneburg"]
[Date "2019.08.05"]
[Round "3.17"]
[White "Rothenberg, Anke"]
[Black "Geissler, Karl-Heinz"]
[Result "1/2-1/2"]
[ECO "D05"]
[WhiteElo "1467"]
[BlackElo "1581"]
[Annotator "NA"]
[PlyCount "71"]
[EventDate "2019.08.03"]
[EventType "swiss"]
[EventCountry "GER"]
[SourceTitle "playchess.com"]
[Source "ChessBase"]
[SourceQuality "1"]
[TimeControl "40/5400+30:1800+30"]

1. d4 {[%emt 0:00:00]} d5 {[%emt 0:00:00]} 2. Nf3 {[%emt 0:00:00]} Nf6 {[%emt 0:00:00]} 3. e3 {[%emt 0:00:00]} e6 {[%emt 0:01:29]} 4. Bd3 {[%emt 0:00:32]} Be7 {[%emt 0:00:44]} 5. Nbd2 {[%emt 0:00:43]} O-O {[%emt 0:00:28]} 6. O-O {[%emt 0:00:16]} c5 {[%emt 0:01:25]} 7. dxc5 {[%emt 0:00:48]} Bxc5 {[%emt 0:00:36]} 8. e4 {[%emt 0:02:26]} dxe4 {[%emt 0:00:59]} 9. Nxe4 {[%emt 0:00:26]} Be7 {[%emt 0:01:48]} 10. Re1 {[%emt 0:03:56]} Nbd7 {[%emt 0:00:52]} 11. c3 {[%emt 0:02:54]} b6 {[%emt 0:03:47]} 12. Qc2 {[%emt 0:03:26]} Bb7 {[%emt 0:02:37]} 13. Bg5 {[%emt 0:07:07]} h6 {[%emt 0:04:05]} 14. Bd2 {[%emt 0:04:22]} Qc7 {[%emt 0:03:48]} 15. Re3 {[%emt 0:02:30]} Rfd8 {[%emt 0:08:20]} 16. Nd4 {[%emt 0:06:56]} Nxe4 {[%emt 0:13:21]} 17. Bxe4 {[%emt 0:02:36]} Bg5 {[%emt 0:02:45]} 18. Re2 {[%emt 0:17:04]} Bxd2 {[%emt 0:03:11]} 19. Bxb7 {[%emt 0:02:15]} Qxb7 {[%emt 0:49:15]} 20. Rxd2 {[%emt 0:00:40]} Nf6 {[%emt 0:00:00]} 21. Rad1 {[%emt 0:02:20]} Rac8 {[%emt 0:00:00]} 22. Qd3 {[%emt 0:06:44]} e5 {[%emt 0:00:00]} 23. Qf3 {[%emt 0:00:51]} Qxf3 {[%emt 0:00:00]} 24. Nxf3 {[%emt 0:00:24]} Rxd2 {[%emt 0:00:00]} 25. Rxd2 {[%emt 0:00:18]} Re8 {[%emt 0:00:00]} 26. Rc2 {[%emt 0:06:38]} Nd7 {[%emt 0:00:00]} 27. c4 {[%emt 0:02:31]} g6 {[%emt 0:00:00]} 28. b4 {[%emt 0:00:51]} f5 {[%emt 0:00:00]} 29. c5 {[%emt 0:02:59]} bxc5 {[%emt 0:00:00]} 30. bxc5 {[%emt 0:00:56]} Kg7 {[%emt 0:00:00]} 31. c6 {[%emt 0:04:32]} Nb6 {[%emt 0:00:00]} 32. c7 {[%emt 0:04:48]} Kf6 {[%emt 0:00:00]} 33. Rc6+ {[%emt 0:03:06]} Kf7 {[%emt 0:00:00]} 34. Rc5 {[%emt 0:04:24]} Kf6 {[%emt 0:00:00]} 35. Rc6+ {[%emt 0:00:25]} Kf7 {[%emt 0:00:00]} 36. Nh4 {[%emt 0:07:16]} 1/2-1/2

[Event "Lueneburg Open-B 2019"]
[Site "Lueneburg"]
[Date "2019.08.05"]
[Round "3.18"]
[White "Rempe, Mieke"]
[Black "Vogel, Elisabeth"]
[Result "0-1"]
[ECO "B90"]
[WhiteElo "1558"]
[BlackElo "1277"]
[Annotator "NA"]
[PlyCount "45"]
[EventDate "2019.08.03"]
[EventType "swiss"]
[EventCountry "GER"]
[SourceTitle "playchess.com"]
[Source "ChessBase"]
[SourceQuality "1"]
[TimeControl "40/5400+30:1800+30"]

1. e4 {[%emt 0:00:00]} c5 {[%emt 0:00:00]} 2. Nf3 {[%emt 0:00:00]} d6 {[%emt 0:00:14]} 3. d4 {[%emt 0:00:00]} cxd4 {[%emt 0:00:14]} 4. Nxd4 {[%emt 0:00:01]} Nf6 {[%emt 0:00:08]} 5. Nc3 {[%emt 0:00:11]} a6 {[%emt 0:00:17]} 6. a4 {[%emt 0:01:08]} e5 {[%emt 0:02:16]} 7. Nf3 {[%emt 0:01:04]} Be6 {[%emt 0:04:07]} 8. Ng5 {[%emt 0:05:02]} Nc6 {[%emt 0:01:38]} 9. Nxe6 {[%emt 0:03:23]} fxe6 {[%emt 0:00:08]} 10. Bc4 {[%emt 0:02:37]} Qd7 {[%emt 0:02:34]} 11. Bg5 {[%emt 0:03:51]} Be7 {[%emt 0:01:31]} 12. Bxf6 {[%emt 0:05:42]} Bxf6 {[%emt 0:00:09]} 13. Qh5+ {[%emt 0:00:10]} Ke7 {[%emt 0:00:53]} 14. O-O-O {[%emt 0:05:11]} Rac8 {[%emt 0:03:29]} 15. Rhf1 {[%emt 0:09:12]} Nd4 {[%emt 0:03:39]} 16. Ba2 {[%emt 0:03:35]} b5 {[%emt 0:01:13]} 17. f4 {[%emt 0:01:25]} b4 {[%emt 0:04:58]} 18. Bxe6 {[%emt 0:08:56]} Qxe6 {[%emt 0:03:01]} 19. Nd5+ {[%emt 0:00:14]} Kd8 {[%emt 0:03:17]} 20. Rd2 {[%emt 0:02:03]} Nb3+ {[%emt 0:00:47]} 21. Kd1 {[%emt 0:00:12]} Nxd2 {[%emt 0:00:22]} 22. f5 {[%emt 0:00:06]} Qe8 {[%emt 0:02:41]} 23. Ke1 {[%emt 0:47:27]} 0-1

[Event "Lueneburg Open-B 2019"]
[Site "Lueneburg"]
[Date "2019.08.05"]
[Round "3.20"]
[White "Buchinger, Alexis"]
[Black "Mi, Gufeng"]
[Result "0-1"]
[ECO "B06"]
[WhiteElo "1346"]
[BlackElo "1564"]
[Annotator "NA"]
[PlyCount "132"]
[EventDate "2019.08.03"]
[EventType "swiss"]
[EventCountry "GER"]
[SourceTitle "playchess.com"]
[Source "ChessBase"]
[SourceQuality "1"]
[TimeControl "40/5400+30:1800+30"]

1. d4 {[%emt 0:00:00]} g6 {[%emt 0:00:21]} 2. Nc3 {[%emt 0:00:00]} Bg7 {[%emt 0:00:22]} 3. e4 {[%emt 0:00:06]} d6 {[%emt 0:00:13]} 4. g3 {[%emt 0:00:35]} Nd7 {[%emt 0:00:57]} 5. Bg2 {[%emt 0:00:47]} e5 {[%emt 0:02:04]} 6. d5 {[%emt 0:01:07]} a6 {[%emt 0:02:18]} 7. Nf3 {[%emt 0:01:09]} b5 {[%emt 0:00:43]} 8. Nd2 {[%emt 0:01:52]} b4 {[%emt 0:01:13]} 9. Ne2 {[%emt 0:00:15]} a5 {[%emt 0:00:22]} 10. a3 {[%emt 0:00:29]} bxa3 {[%emt 0:00:48]} 11. Rxa3 {[%emt 0:00:12]} Bb7 {[%emt 0:01:29]} 12. Nc4 {[%emt 0:02:49]} a4 {[%emt 0:01:54]} 13. Be3 {[%emt 0:02:32]} Nb6 {[%emt 0:02:07]} 14. Nxb6 {[%emt 0:00:32]} cxb6 {[%emt 0:00:08]} 15. c3 {[%emt 0:00:20]} b5 {[%emt 0:00:56]} 16. c4 {[%emt 0:00:55]} bxc4 {[%emt 0:05:04]} 17. Rxa4 {[%emt 0:00:29]} Ba6 {[%emt 0:02:03]} 18. Ra3 {[%emt 0:03:09]} Nf6 {[%emt 0:04:29]} 19. Qa4+ {[%emt 0:00:18]} Nd7 {[%emt 0:03:22]} 20. Qc6 {[%emt 0:01:37]} O-O {[%emt 1:09:07]} 21. Rxa6 {[%emt 1:21:17]} Rxa6 {[%emt 0:00:00]} 22. Qxa6 {[%emt 0:00:00]} Qb8 {[%emt 0:00:00]} 23. Qxc4 {[%emt 0:01:00]} Qxb2 {[%emt 0:00:00]} 24. Qc1 {[%emt 0:00:00]} Qb4+ {[%emt 0:00:00]} 25. Bd2 {[%emt 0:00:00]} Qb5 {[%emt 0:00:00]} 26. Qd1 {[%emt 0:00:00]} Nc5 {[%emt 0:00:00]} 27. O-O {[%emt 0:00:00]} Ra8 {[%emt 0:00:00]} 28. Be3 {[%emt 0:00:00]} Nd7 {[%emt 0:00:00]} 29. h3 {[%emt 0:00:00]} h5 {[%emt 0:00:00]} 30. Qd2 {[%emt 0:00:00]} Qa6 {[%emt 0:00:00]} 31. Rc1 {[%emt 0:00:00]} Nf6 {[%emt 0:00:00]} 32. Rc6 {[%emt 0:00:00]} Qa3 {[%emt 0:00:00]} 33. Qc1 {[%emt 0:00:00]} Qd3 {[%emt 0:00:00]} 34. Qc2 {[%emt 0:00:00]} Ra1+ {[%emt 0:00:00]} 35. Kh2 {[%emt 0:00:00]} Qa3 {[%emt 0:00:00]} 36. Bc1 {[%emt 0:00:00]} Qa7 {[%emt 0:00:00]} 37. f3 {[%emt 0:00:00]} Qf2 {[%emt 0:00:00]} 38. Rxd6 {[%emt 0:00:00]} Rxc1 {[%emt 0:00:00]} 39. Rd8+ {[%emt 0:00:00]} Kh7 {[%emt 0:00:00]} 40. Qxc1 {[%emt 0:00:00]} Qxe2 {[%emt 0:00:00]} 41. d6 {[%emt 0:00:00]} h4 {[%emt 0:24:55]} 42. gxh4 {[%emt 0:00:00]} Bh6 {[%emt 0:02:25]} 43. Qf1 {[%emt 0:00:00]} Bf4+ {[%emt 0:00:41]} 44. Kh1 {[%emt 0:00:00]} Qd2 {[%emt 0:02:05]} 45. Qc4 {[%emt 0:00:00]} Qe1+ {[%emt 0:02:20]} 46. Bf1 {[%emt 0:00:00]} Kg7 {[%emt 0:02:16]} 47. Qe2 {[%emt 0:00:00]} Qxh4 {[%emt 0:02:41]} 48. Bg2 {[%emt 0:00:00]} Nh5 {[%emt 0:02:47]} 49. Kg1 {[%emt 0:00:00]} Qxd8 {[%emt 0:00:18]} 50. Qd3 {[%emt 0:00:00]} Qb6+ {[%emt 0:00:36]} 51. Kf1 {[%emt 0:00:00]} Ng3+ {[%emt 0:01:38]} 52. Ke1 {[%emt 0:00:00]} Qg1+ {[%emt 0:00:00]} 53. Bf1 {[%emt 0:00:00]} Qxf1+ {[%emt 0:00:00]} 54. Qxf1 {[%emt 0:00:00]} Nxf1 {[%emt 0:00:00]} 55. Kxf1 {[%emt 0:00:00]} Kf8 {[%emt 0:00:00]} 56. Ke2 {[%emt 0:00:00]} Ke8 {[%emt 0:00:00]} 57. Kd3 {[%emt 0:00:00]} Kd7 {[%emt 0:00:00]} 58. Kc4 {[%emt 0:00:00]} Kxd6 {[%emt 0:00:00]} 59. Kd3 {[%emt 0:00:00]} Ke6 {[%emt 0:00:00]} 60. Ke2 {[%emt 0:00:00]} Kf6 {[%emt 0:00:00]} 61. Kf2 {[%emt 0:00:00]} Kg5 {[%emt 0:00:00]} 62. Kg2 {[%emt 0:00:00]} Kh4 {[%emt 0:00:00]} 63. Kf2 {[%emt 0:00:00]} f6 {[%emt 0:00:00]} 64. Ke2 Kxh3 {[%emt 0:00:00]} 65. Ke1 {[%emt 0:00:00]} Kg2 66. Ke2 {[%emt 0:00:00] Kxf3+ Kf1 Kxe4 Ke2} g5 {[%emt 0:00:00] Kf2 g4 Kg2 f5 Kf2 Bh2 Kg2 g3 Kf1 Ke3 Kg2 Ke2 Kh1 f4 Kg2 f3 Kh3 f2 Kh4 f1=Q Kh5 Qf5+ Kh4 Qf1 Kh5 g2 Kh6 g1=Q Kh7 Qf7+} 0-1

[Event "Lueneburg Open-B 2019"]
[Site "Lueneburg"]
[Date "2019.08.06"]
[Round "4.1"]
[White "Wiese, Uwe"]
[Black "Fomenkov, Alexander"]
[Result "1-0"]
[ECO "E20"]
[WhiteElo "1737"]
[BlackElo "1779"]
[Annotator "NA"]
[PlyCount "67"]
[EventDate "2019.08.03"]
[EventType "swiss"]
[EventCountry "GER"]
[SourceTitle "playchess.com"]
[Source "ChessBase"]
[SourceQuality "1"]
[TimeControl "40/5400+30:1800+30"]

1. d4 {[%emt 0:00:00]} Nf6 {[%emt 0:01:29]} 2. c4 {[%emt 0:00:00]} e6 {[%emt 0:00:12]} 3. Nc3 {[%emt 0:00:20]} Be7 {[%emt 0:00:10]} 4. e4 {[%emt 0:01:29]} d5 {[%emt 0:07:24]} 5. e5 {[%emt 0:07:58]} Ne4 {[%emt 0:00:49]} 6. Nxe4 {[%emt 0:04:22]} dxe4 {[%emt 0:00:17]} 7. a3 {[%emt 0:06:00]} Nc6 {[%emt 0:05:37]} 8. Be3 {[%emt 0:00:22]} Bg5 {[%emt 0:00:19]} 9. Qg4 {[%emt 0:05:51]} Bxe3 {[%emt 0:03:40]} 10. fxe3 {[%emt 0:04:29]} O-O {[%emt 0:00:28]} 11. Qxe4 {[%emt 0:00:37]} f6 {[%emt 0:00:32]} 12. Bd3 {[%emt 0:04:13]} f5 {[%emt 0:01:25]} 13. Qf4 {[%emt 0:00:52]} g5 {[%emt 0:01:15]} 14. Qg3 {[%emt 0:02:42]} f4 {[%emt 0:05:00]} 15. Qh3 {[%emt 0:03:45]} Rf7 {[%emt 0:03:07]} 16. Nf3 {[%emt 0:00:37]} fxe3 {[%emt 0:02:45]} 17. O-O {[%emt 0:05:44]} e2 {[%emt 0:06:14]} 18. Bxe2 {[%emt 0:01:24]} Nxd4 {[%emt 0:00:11]} 19. Nxd4 {[%emt 0:01:25]} Qxd4+ {[%emt 0:00:15]} 20. Kh1 {[%emt 0:00:12]} Rxf1+ {[%emt 0:05:33]} 21. Rxf1 {[%emt 0:00:13]} Qxe5 {[%emt 0:01:09]} 22. Qh5 {[%emt 0:00:44]} Bd7 {[%emt 0:09:12]} 23. Rf7 {[%emt 0:01:55]} Qe4 {[%emt 0:01:14]} 24. Rxd7 {[%emt 0:01:41]} Qb1+ {[%emt 0:03:25]} 25. Bd1 {[%emt 0:00:20]} Qf5 {[%emt 0:01:52]} 26. Qf3 {[%emt 0:03:28]} Rf8 {[%emt 0:03:37]} 27. Qxf5 {[%emt 0:00:10]} Rxf5 {[%emt 0:00:09]} 28. Kg1 {[%emt 0:00:20]} Rc5 {[%emt 0:00:44]} 29. Bg4 {[%emt 0:02:08]} Kf8 {[%emt 0:05:37]} 30. Bxe6 {[%emt 0:00:59]} Re5 {[%emt 0:01:32]} 31. Bd5 {[%emt 0:01:51]} a5 {[%emt 0:02:39]} 32. Rxc7 {[%emt 0:00:27]} b5 {[%emt 0:00:10]} 33. Rxh7 {[%emt 0:00:37]} bxc4 {[%emt 0:00:21]} 34. Bxc4 {[%emt 0:00:26]} 1-0

[Event "Lueneburg Open-B 2019"]
[Site "Lueneburg"]
[Date "2019.08.06"]
[Round "4.2"]
[White "Kasipour Azbari, Seyed Arvin"]
[Black "Groth, Matthias"]
[Result "1/2-1/2"]
[ECO "B92"]
[WhiteElo "1765"]
[BlackElo "1737"]
[Annotator "NA"]
[PlyCount "95"]
[EventDate "2019.08.03"]
[EventType "swiss"]
[EventCountry "GER"]
[SourceTitle "playchess.com"]
[Source "ChessBase"]
[SourceQuality "1"]
[TimeControl "40/5400+30:1800+30"]

1. e4 {[%emt 0:00:00]} c5 {[%emt 0:00:00]} 2. Nf3 {[%emt 0:00:03]} d6 {[%emt 0:00:00]} 3. d4 {[%emt 0:00:06]} cxd4 {[%emt 0:00:00]} 4. Nxd4 {[%emt 0:00:02]} Nf6 {[%emt 0:00:00]} 5. Nc3 {[%emt 0:00:06]} a6 {[%emt 0:00:00]} 6. Be2 {[%emt 0:00:07]} e5 {[%emt 0:00:28]} 7. Nb3 {[%emt 0:00:01]} Be6 {[%emt 0:01:35]} 8. O-O {[%emt 0:00:14]} Be7 {[%emt 0:00:34]} 9. Kh1 {[%emt 0:00:16]} d5 {[%emt 0:03:06]} 10. exd5 {[%emt 0:02:34]} Nxd5 {[%emt 0:01:02]} 11. Nxd5 {[%emt 0:04:43]} Bxd5 {[%emt 0:06:00]} 12. c4 {[%emt 0:02:09]} Bc6 {[%emt 0:01:39]} 13. Be3 {[%emt 0:03:38]} O-O {[%emt 0:01:18]} 14. Qxd8 {[%emt 0:07:06]} Bxd8 {[%emt 0:07:30]} 15. Bc5 {[%emt 0:08:53]} Re8 {[%emt 0:01:36]} 16. Rad1 {[%emt 0:04:54]} Nd7 {[%emt 0:02:42]} 17. Bd6 {[%emt 0:11:13]} f6 {[%emt 0:14:30]} 18. c5 {[%emt 0:04:44]} g6 {[%emt 0:05:26]} 19. Bc4+ {[%emt 0:07:21]} Kg7 {[%emt 0:01:41]} 20. f4 {[%emt 0:01:22]} e4 {[%emt 0:04:35]} 21. Nd4 {[%emt 0:04:29]} f5 {[%emt 0:08:45]} 22. Be6 {[%emt 0:16:33]} Nf6 {[%emt 0:06:55]} 23. Be5 {[%emt 0:01:59]} Kh6 {[%emt 0:06:15]} 24. Nxc6 {[%emt 0:06:01]} bxc6 {[%emt 0:00:19]} 25. Bd7 {[%emt 0:02:04]} Nxd7 {[%emt 0:03:20]} 26. Rxd7 {[%emt 0:00:26]} Re7 {[%emt 0:02:28]} 27. Rfd1 {[%emt 0:03:38]} Rxd7 {[%emt 0:04:15]} 28. Rxd7 {[%emt 0:00:05]} Ba5 {[%emt 0:01:49]} 29. Bf6 {[%emt 0:02:17]} g5 {[%emt 0:06:50]} 30. fxg5+ {[%emt 0:01:39]} Kg6 {[%emt 0:01:58]} 31. Rg7+ {[%emt 0:00:17]} Kh5 {[%emt 0:00:06]} 32. Rxh7+ {[%emt 0:00:42]} Kg6 {[%emt 0:00:02]} 33. Rh6+ {[%emt 0:02:17]} Kf7 {[%emt 0:00:12]} 34. Rh7+ {[%emt 0:02:00]} Kg6 {[%emt 0:02:57]} 35. Re7 {[%emt 0:01:04]} Rg8 {[%emt 0:02:06]} 36. h4 {[%emt 0:01:43]} Kh5 {[%emt 0:01:03]} 37. Kh2 {[%emt 0:00:53]} Kg4 {[%emt 0:00:46]} 38. g3 {[%emt 0:00:42]} Rd8 {[%emt 0:03:35]} 39. g6 {[%emt 0:00:25]} Rd1 {[%emt 0:00:27]} 40. g7 {[%emt 0:00:33]} Rd2+ {[%emt 0:00:16]} 41. Kg1 {[%emt 0:30:14]} Rd1+ {[%emt 0:31:43]} 42. Kg2 {[%emt 0:00:47]} Rd2+ {[%emt 0:00:12]} 43. Kg1 {[%emt 0:00:24]} Rd1+ {[%emt 0:00:53]} 44. Kf2 {[%emt 0:00:14]} Rd2+ {[%emt 0:00:09]} 45. Ke3 {[%emt 0:00:55]} Rd3+ {[%emt 0:01:27]} 46. Ke2 Rd2+ 47. Ke1 Rxb2+ {[%emt 0:01:00]} 48. Kd1 {[%emt 0:02:07]} 1/2-1/2